fUSD/lending_fUSD_20240729
["ID","MTS","AMOUNT","RATE_DAILY","PERIOD"]
[333585342,1722259084423,-759.75626998,0.00010999,2]
[333585343,1722259084445,-9262.00526818,0.00010999,2]
[333585344,1722259084466,-1370.0029794,0.00010999,2]
[333585345,1722259084488,-1049.39668644,0.00010999,2]
[333585346,1722259084515,-449.05997968,0.00010999,2]
[333585347,1722259084537,-300.43987163,0.00010999,2]
[333585348,1722259084559,-363.64615275,0.00010999,2]
[333585349,1722259084582,-181.62808435,0.00010999,2]
[333585350,1722259084605,-235874.48406609,0.00010999,2]
[333585351,1722259084627,-155.0,0.00010999,2]
[333585352,1722259084649,-1222.54442824,0.00010999,2]
[333585353,1722259084670,-500.0,0.00010999,2]
[333585354,1722259084692,-500.0,0.00010999,2]
[333585355,1722259084714,-500.0,0.00010999,2]
[333585356,1722259084740,-500.0,0.00010999,2]
[333585357,1722259084766,-396.83,0.00010999,2]
[333585358,1722259084793,-500.0,0.00010999,2]
[333585359,1722259084816,-500.0,0.00010999,2]
[333585360,1722259084840,-385.32007589,0.00010999,2]
[333585361,1722259084862,-500.0,0.00010999,2]
[333585362,1722259084885,-500.0,0.00010999,2]
[333585363,1722259084907,-500.0,0.00010999,2]
[333585364,1722259084929,-500.0,0.00010999,2]
[333585365,1722259084951,-500.0,0.00010999,2]
[333585366,1722259084973,-500.0,0.00010999,2]
[333585367,1722259084995,-500.0,0.00010999,2]
[333585368,1722259085020,-500.0,0.00010999,2]
[333585369,1722259085042,-629.47346863,0.00010999,2]
[333585370,1722259085063,-500.0,0.00010999,2]
[333585371,1722259085085,-500.0,0.00010999,2]
[333585372,1722259085107,-505.24850308,0.00010999,2]
[333585373,1722259085128,-1000.0,0.00010999,2]
[333585374,1722259085151,-2829.92,0.00010999,2]
[333585375,1722259085181,-2829.92,0.00010999,2]
[333585376,1722259085204,-2829.92,0.00010999,2]
[333585377,1722259085231,-2829.92,0.00010999,2]
[333585378,1722259085257,-2829.92,0.00010999,2]
[333585379,1722259085281,-2829.92,0.00010999,2]
[333585380,1722259085306,-2829.92,0.00010999,2]
[333585381,1722259085329,-2829.92,0.00010999,2]
[333585382,1722259085352,-2829.92,0.00010999,2]
[333585383,1722259085374,-2829.92,0.00010999,2]
[333585384,1722259085397,-2829.92,0.00010999,2]
[333585385,1722259085420,-2829.92,0.00010999,2]
[333585386,1722259085443,-2829.92,0.00010999,2]
[333585387,1722259085467,-2829.92,0.00010999,2]
[333585388,1722259085491,-2829.92,0.00010999,2]
[333585389,1722259085516,-2829.92,0.00010999,2]
[333585390,1722259085539,-2829.92,0.00010999,2]
[333585391,1722259085562,-2829.92,0.00010999,2]
[333585392,1722259085584,-2829.96568799,0.00010999,2]
[333585393,1722259085607,-500.0,0.00010999,2]
[333585394,1722259085629,-500.0,0.00010999,2]
[333585395,1722259085650,-500.0,0.00010999,2]
[333585396,1722259085672,-500.0,0.00010999,2]
[333585397,1722259085693,-500.0,0.00010999,2]
[333585398,1722259085714,-162.94297599,0.00010999,2]
[333585399,1722259085736,-500.0,0.00010999,2]
[333585400,1722259085763,-500.0,0.00010999,2]
[333585401,1722259085786,-500.0,0.00010999,2]
[333585402,1722259085808,-500.0,0.00010999,2]
[333585403,1722259085829,-500.0,0.00010999,2]
[333585404,1722259085852,-500.0,0.00010999,2]
[333585405,1722259085873,-500.0,0.00010999,2]
[333585406,1722259085894,-353.0093,0.00010999,2]
[333585407,1722259085915,-500.0,0.00010999,2]
[333585408,1722259085936,-500.0,0.00010999,2]
[333585409,1722259085956,-500.0,0.00010999,2]
[333585410,1722259085981,-500.0,0.00010999,2]
[333585411,1722259086005,-500.0,0.00010999,2]
[333585412,1722259086028,-500.0,0.00010999,2]
[333585413,1722259086050,-500.0,0.00010999,2]
[333585414,1722259086073,-500.0,0.00010999,2]
[333585415,1722259086096,-500.0,0.00010999,2]
[333585416,1722259086118,-500.0,0.00010999,2]
[333585417,1722259086141,-500.0,0.00010999,2]
[333585418,1722259086165,-233.9,0.00010999,2]
[333585419,1722259086186,-773.08,0.00010999,2]
[333585420,1722259086209,-773.08,0.00010999,2]
[333585421,1722259086234,-773.08,0.00010999,2]
[333585422,1722259086258,-773.08,0.00010999,2]
[333585423,1722259086279,-773.08,0.00010999,2]
[333585424,1722259086302,-773.08,0.00010999,2]
[333585425,1722259086324,-773.08,0.00010999,2]
[333585426,1722259086345,-773.08,0.00010999,2]
[333585427,1722259086367,-773.08,0.00010999,2]
[333585428,1722259086389,-773.08,0.00010999,2]
[333585429,1722259086410,-773.08,0.00010999,2]
[333585430,1722259086431,-773.08,0.00010999,2]
[333585431,1722259086454,-773.08,0.00010999,2]
[333585432,1722259086474,-773.08,0.00010999,2]
[333585433,1722259086496,-773.08,0.00010999,2]
[333585434,1722259086518,-773.08,0.00010999,2]
[333585435,1722259086543,-773.08,0.00010999,2]
[333585436,1722259086566,-773.08,0.00010999,2]
[333585437,1722259086591,-773.16,0.00010999,2]
[333585438,1722259086612,-500.0,0.00010999,2]
[333585439,1722259086633,-500.0,0.00010999,2]
[333585440,1722259086655,-500.0,0.00010999,2]
[333585441,1722259086679,-239174.82459144,0.00011,2]
[333585442,1722259086701,-3119987.17261583,0.00011,2]
[333585443,1722259086723,-18899832.01652656,0.00011,2]
[333585451,1722259525929,1475.56842653,0.00015,30]
[333585454,1722259574278,2000.0,6.781e-05,2]
[333585455,1722259610439,2000.2741112,6.781e-05,2]
[333585456,1722259624199,5999.7258888,6.781e-05,2]
[333585457,1722259624221,10000.0,6.781e-05,2]
[333585458,1722259624241,10000.0,6.781e-05,2]
[333585459,1722259624262,10000.0,6.781e-05,2]
[333585460,1722259624283,10000.0,6.781e-05,2]
[333585461,1722259624303,10000.0,6.781e-05,2]
[333585462,1722259624324,10000.0,6.781e-05,2]
[333585464,1722259707422,-150.0,6.201e-05,2]
[333585465,1722259707591,-150.0,6.201e-05,2]
[333585466,1722259707670,-150.0,6.201e-05,2]
[333585467,1722259707743,-150.0,6.201e-05,2]
[333585468,1722259707824,-150.0,6.201e-05,2]
[333585469,1722259707872,-150.0,6.201e-05,2]
[333585470,1722259707957,-150.0,6.201e-05,2]
[333585471,1722259708011,-150.0,6.201e-05,2]
[333585472,1722259708064,-150.0,6.201e-05,2]
[333585473,1722259708120,-150.0,6.201e-05,2]
[333585474,1722259708179,-150.0,6.201e-05,2]
[333585475,1722259708223,-150.0,6.201e-05,2]
[333585476,1722259708315,-150.0,6.201e-05,2]
[333585477,1722259708350,-50.0,6.201e-05,2]
[333585478,1722259724011,150.0,6.201e-05,2]
[333585479,1722259724032,150.0,6.201e-05,2]
[333585480,1722259724052,150.0,6.201e-05,2]
[333585481,1722259724076,150.0,6.201e-05,2]
[333585482,1722259724096,150.0,6.201e-05,2]
[333585483,1722259724116,121.33841357,6.201e-05,2]
[333585484,1722259726127,28.66158643,6.201e-05,2]
[333585485,1722259726147,238.657388,6.201e-05,2]
[333585486,1722259726167,150.0,6.201e-05,2]
[333585487,1722259728061,-150.0,6.201e-05,2]
[333585488,1722259728140,-150.0,6.201e-05,2]
[333585489,1722259728208,-80.26916389,6.201e-05,2]
[333585490,1722259728227,-199.76217826,6.201e-05,2]
[333585491,1722259728256,74.4191814,6.201e-05,2]
[333585492,1722259729174,-304.56186107,6.201e-05,2]
[333585493,1722259730987,-150.0,6.201e-05,2]
[333585494,1722259731141,-150.0,6.201e-05,2]
[333585495,1722259731184,-150.0,6.201e-05,2]
[333585496,1722259731296,-150.0,6.201e-05,2]
[333585497,1722259731336,-150.0,6.201e-05,2]
[333585498,1722259731395,-150.0,6.201e-05,2]
[333585499,1722259731476,-150.0,6.201e-05,2]
[333585500,1722259731529,-150.0,6.201e-05,2]
[333585501,1722259731589,-150.0,6.201e-05,2]
[333585502,1722259731633,-150.0,6.201e-05,2]
[333585503,1722259731680,-150.0,6.201e-05,2]
[333585504,1722259731724,-150.0,6.201e-05,2]
[333585505,1722259731767,-150.0,6.201e-05,2]
[333585506,1722259731838,-150.0,6.201e-05,2]
[333585507,1722259731881,-150.0,6.201e-05,2]
[333585508,1722259731946,-250.77019789,6.201e-05,2]
[333585509,1722259731992,-150.0,6.201e-05,2]
[333585510,1722259732054,-150.0,6.201e-05,2]
[333585511,1722259732106,-150.0,6.201e-05,2]
[333585512,1722259732189,-150.0,6.201e-05,2]
[333585513,1722259732246,-150.0,6.201e-05,2]
[333585514,1722259734529,-150.0,6.201e-05,2]
[333585525,1722259802819,150.0,6.2e-05,2]
[333585543,1722259831708,-689.90835619,6.201e-05,2]
[333585544,1722259831826,-2003.45559761,6.201e-05,2]
[333585545,1722259833923,-2788.89007402,6.201e-05,2]
[333585546,1722259833933,-4254.79114212,6.201e-05,2]
[333585547,1722259833943,-158.89214618,6.201e-05,2]
[333585548,1722259833953,-291.18093939,6.201e-05,2]
[333585549,1722259833962,-155.0,6.201e-05,2]
[333585550,1722259833972,-156.04013556,6.201e-05,2]
[333585551,1722259833981,-363.64615275,6.201e-05,2]
[333585552,1722259833990,-1370.0029794,6.201e-05,2]
[333585553,1722259834001,-411.49590119,6.201e-05,2]
[333585554,1722259834010,-16587.9108426,6.201e-05,2]
[333585555,1722259834020,-1222.54442824,6.201e-05,2]
[333585556,1722259834029,-305.44142731,6.201e-05,2]
[333585557,1722259834038,-348.60567054,6.201e-05,2]
[333585558,1722259834048,-54008.06950664,6.201e-05,2]
[333585559,1722259834057,-54008.06950664,6.201e-05,2]
[333585560,1722259834066,-255.0,6.82e-05,2]
[333585561,1722259834075,-990.90845593,7.516e-05,2]
[333585562,1722259834085,-302.790542,8.178e-05,2]
[333585563,1722259834095,-506.04,8.219e-05,2]
[333585564,1722259834105,-175.18,9.397e-05,2]
[333585565,1722259834114,-23900.0,9.424e-05,2]
[333585566,1722259834123,-188.85,9.643e-05,2]
[333585568,1722259834132,-600.0,9.67e-05,2]
[333585570,1722259834142,-865.4228852,9.888e-05,2]
[333585572,1722259834155,-150.0,9.888e-05,2]
[333585574,1722259834164,-150.0,9.888e-05,2]
[333585576,1722259834173,-383.95784046,9.888e-05,2]
[333585578,1722259834183,-150.0,9.888e-05,2]
[333585580,1722259834191,-150.0,9.888e-05,2]
[333585581,1722259834201,-150.0,9.888e-05,2]
[333585583,1722259834210,-150.0,9.888e-05,2]
[333585585,1722259834219,-150.0,9.888e-05,2]
[333585587,1722259834228,-150.0,9.888e-05,2]
[333585589,1722259834237,-865.4228852,9.899e-05,2]
[333585591,1722259834247,-383.95784046,9.899e-05,2]
[333585593,1722259834257,-400.0,9.9e-05,3]
[333585595,1722259834266,-150.0,9.903e-05,2]
[333585597,1722259834276,-150.0,9.907e-05,2]
[333585599,1722259834286,-865.4228852,9.91e-05,2]
[333585601,1722259834296,-383.95784046,9.91e-05,2]
[333585603,1722259834306,-150.0,9.919e-05,2]
[333585605,1722259834315,-865.4228852,9.921e-05,2]
[333585607,1722259834325,-383.95784046,9.921e-05,2]
[333585609,1722259834335,-150.0,9.926e-05,2]
[333585610,1722259834344,-865.4228852,9.932e-05,2]
[333585612,1722259834354,-383.95784046,9.932e-05,2]
[333585614,1722259834364,-150.0,9.935e-05,2]
[333585616,1722259834373,-865.4228852,9.943e-05,2]
[333585618,1722259834382,-383.95784046,9.943e-05,2]
[333585620,1722259834392,-150.0,9.944e-05,2]
[333585622,1722259834408,-150.0,9.95e-05,2]
[333585624,1722259834417,-865.4228852,9.954e-05,2]
[333585626,1722259834427,-383.95784046,9.954e-05,2]
[333585629,1722259834437,-1000.0,9.96e-05,2]
[333585630,1722259834448,-6528.12,9.96e-05,2]
[333585633,1722259834459,-157.83,9.96e-05,2]
[333585635,1722259834470,-250.0,9.96e-05,2]
[333585637,1722259834480,-150.0,9.963e-05,2]
[333585639,1722259834491,-865.4228852,9.965e-05,2]
[333585641,1722259834501,-383.95784046,9.965e-05,2]
[333585643,1722259834511,-150.0,9.966e-05,2]
[333585645,1722259834521,-865.4228852,9.976e-05,2]
[333585647,1722259834534,-383.95784046,9.976e-05,2]
[333585649,1722259834543,-157.83,9.977e-05,2]
[333585651,1722259834553,-150.0,9.982e-05,2]
[333585653,1722259834562,-150.0,9.982e-05,2]
[333585655,1722259834572,-865.4228852,9.988e-05,2]
[333585657,1722259834581,-383.95784046,9.988e-05,2]
[333585659,1722259834591,-150.0,9.988e-05,2]
[333585661,1722259834601,-157.83,9.993e-05,2]
[333585662,1722259834611,-150.0,9.998e-05,2]
[333585663,1722259834620,-865.4228852,9.999e-05,2]
[333585664,1722259834630,-383.95784046,9.999e-05,2]
[333585665,1722259834640,-371.5992053,0.0001,2]
[333585666,1722259834657,-41762.58307666,0.0001,2]
[333585667,1722259834667,-499.99,0.0001,2]
[333585668,1722259834676,-800.0,0.0001,3]
[333585669,1722259834686,-300.63696912,0.0001,2]
[333585670,1722259834698,-150.0,0.00010001,2]
[333585671,1722259834708,-865.4228852,0.0001001,2]
[333585672,1722259834719,-383.95784046,0.0001001,2]
[333585673,1722259834729,-157.83,0.0001001,2]
[333585674,1722259834740,-150.0,0.00010013,2]
[333585675,1722259834752,-150.0,0.0001002,2]
[333585676,1722259834763,-865.4228852,0.00010021,2]
[333585677,1722259834774,-383.95784046,0.00010021,2]
[333585678,1722259834785,-150.0,0.00010029,2]
[333585679,1722259834795,-865.4228852,0.00010032,2]
[333585680,1722259834805,-383.95784046,0.00010032,2]
[333585681,1722259834816,-150.0,0.00010039,2]
[333585682,1722259834826,-865.4228852,0.00010043,2]
[333585683,1722259835056,-383.95784046,0.00010043,2]
[333585684,1722259835066,-150.0,0.00010045,2]
[333585685,1722259835075,-865.4228852,0.00010054,2]
[333585686,1722259835085,-383.95784046,0.00010054,2]
[333585687,1722259835094,-150.0,0.00010058,2]
[333585688,1722259835103,-150.0,0.0001006,2]
[333585689,1722259835112,-865.4228852,0.00010065,2]
[333585690,1722259835122,-383.95784046,0.00010065,2]
[333585691,1722259835132,-500.0,0.00010068,2]
[333585692,1722259835142,-299.99,0.00010068,2]
[333585693,1722259835155,-150.0,0.00010071,2]
[333585694,1722259835165,-150.0,0.00010076,2]
[333585695,1722259835175,-865.4228852,0.00010076,2]
[333585696,1722259835185,-383.95784046,0.00010076,2]
[333585697,1722259835194,-150.0,0.00010077,2]
[333585698,1722259835204,-865.4228852,0.00010087,2]
[333585699,1722259835214,-383.95784046,0.00010087,2]
[333585700,1722259835223,-150.0,0.00010087,2]
[333585701,1722259835232,-150.0,0.00010092,2]
[333585702,1722259835241,-150.0,0.00010096,2]
[333585703,1722259835250,-865.4228852,0.00010099,2]
[333585704,1722259835260,-383.95784046,0.00010099,2]
[333585705,1722259835269,-1200.0,0.000101,3]
[333585706,1722259835278,-150.0,0.00010107,2]
[333585707,1722259835287,-150.0,0.00010107,2]
[333585708,1722259835296,-150.0,0.00010107,2]
[333585709,1722259835305,-865.4228852,0.0001011,2]
[333585710,1722259835314,-383.95784046,0.0001011,2]
[333585711,1722259835323,-150.0,0.00010115,2]
[333585712,1722259835332,-865.4228852,0.00010121,2]
[333585713,1722259835341,-383.95784046,0.00010121,2]
[333585714,1722259835349,-150.0,0.00010123,2]
[333585715,1722259835358,-865.4228852,0.00010132,2]
[333585716,1722259835367,-383.95784046,0.00010132,2]
[333585717,1722259835376,-150.0,0.00010134,2]
[333585718,1722259835385,-150.0,0.00010139,2]
[333585719,1722259835394,-865.4228852,0.00010143,2]
[333585720,1722259835408,-383.95784046,0.00010143,2]
[333585721,1722259835417,-150.0,0.00010153,2]
[333585722,1722259835425,-865.4228852,0.00010154,2]
[333585723,1722259835434,-383.95784046,0.00010154,2]
[333585724,1722259835443,-150.0,0.00010154,2]
[333585725,1722259835452,-150.0,0.00010162,2]
[333585726,1722259835463,-865.4228852,0.00010165,2]
[333585727,1722259835473,-383.95784046,0.00010165,2]
[333585728,1722259835482,-150.0,0.0001017,2]
[333585729,1722259835492,-150.0,0.00010172,2]
[333585730,1722259835501,-865.4228852,0.00010176,2]
[333585731,1722259835510,-383.95784046,0.00010176,2]
[333585732,1722259835519,-150.0,0.00010186,2]
[333585733,1722259835528,-865.4228852,0.00010187,2]
[333585734,1722259835539,-383.95784046,0.00010187,2]
[333585735,1722259835548,-150.0,0.00010187,2]
[333585736,1722259835557,-150.0,0.00010191,2]
[333585737,1722259835566,-865.4228852,0.00010198,2]
[333585738,1722259835575,-383.95784046,0.00010198,2]
[333585739,1722259835584,-1600.0,0.000102,3]
[333585740,1722259835594,-150.0,0.00010202,2]
[333585741,1722259835603,-865.4228852,0.00010209,2]
[333585742,1722259835612,-383.95784046,0.00010209,2]
[333585743,1722259835621,-150.0,0.0001021,2]
[333585744,1722259835632,-150.0,0.00010217,2]
[333585745,1722259835641,-865.4228852,0.00010221,2]
[333585746,1722259835651,-383.95784046,0.00010221,2]
[333585747,1722259835660,-150.0,0.00010229,2]
[333585748,1722259835669,-865.4228852,0.00010232,2]
[333585749,1722259835678,-383.95784046,0.00010232,2]
[333585750,1722259835687,-150.0,0.00010233,2]
[333585751,1722259835696,-865.4228852,0.00010243,2]
[333585752,1722259835705,-383.95784046,0.00010243,2]
[333585753,1722259835714,-150.0,0.00010248,2]
[333585754,1722259835724,-150.0,0.00010249,2]
[333585755,1722259835733,-865.4228852,0.00010254,2]
[333585756,1722259835742,-383.95784046,0.00010254,2]
[333585757,1722259835751,-150.0,0.00010254,2]
[333585758,1722259835760,-378.59,0.00010258,2]
[333585759,1722259835769,-378.59,0.00010261,2]
[333585760,1722259835778,-378.59,0.00010263,2]
[333585761,1722259835788,-150.0,0.00010264,2]
[333585762,1722259835797,-865.4228852,0.00010265,2]
[333585763,1722259835806,-383.95784046,0.00010265,2]
[333585764,1722259835814,-378.59,0.00010266,2]
[333585765,1722259835823,-150.0,0.00010267,2]
[333585766,1722259835832,-378.59,0.00010269,2]
[333585767,1722259835841,-378.59,0.00010271,2]
[333585768,1722259835850,-378.59,0.00010274,2]
[333585769,1722259835859,-865.4228852,0.00010276,2]
[333585770,1722259835867,-383.95784046,0.00010276,2]
[333585771,1722259835877,-378.59,0.00010277,2]
[333585772,1722259835885,-999.99,0.00010277,2]
[333585773,1722259835894,-378.59,0.0001028,2]
[333585774,1722259835907,-150.0,0.0001028,2]
[333585775,1722259835916,-378.59,0.00010282,2]
[333585776,1722259835926,-378.59,0.00010285,2]
[333585777,1722259835935,-150.0,0.00010285,2]
[333585778,1722259835944,-865.4228852,0.00010287,2]
[333585779,1722259835954,-383.95784046,0.00010287,2]
[333585780,1722259835963,-150.0,0.00010287,2]
[333585781,1722259835972,-378.59,0.00010288,2]
[333585782,1722259835981,-378.59,0.0001029,2]
[333585783,1722259835990,-378.59,0.00010293,2]
[333585784,1722259835999,-150.0,0.00010296,2]
[333585785,1722259836008,-378.59,0.00010296,2]
[333585786,1722259836017,-865.4228852,0.00010298,2]
[333585787,1722259836025,-383.95784046,0.00010298,2]
[333585788,1722259836035,-378.59,0.00010299,2]
[333585789,1722259836044,-2100.0,0.000103,3]
[333585790,1722259836054,-378.59,0.00010301,2]
[333585791,1722259836063,-378.59,0.00010304,2]
[333585792,1722259836073,-150.0,0.00010304,2]
[333585793,1722259836082,-378.59,0.00010307,2]
[333585794,1722259836092,-865.4228852,0.00010309,2]
[333585795,1722259836101,-383.95784046,0.00010309,2]
[333585796,1722259836111,-378.59,0.00010309,2]
[333585797,1722259836120,-150.0,0.00010311,2]
[333585798,1722259836129,-865.4228852,0.0001032,2]
[333585799,1722259836138,-383.95784046,0.0001032,2]
[333585800,1722259836147,-150.0,0.00010323,2]
[333585801,1722259836165,-150.0,0.00010327,2]
[333585802,1722259836175,-150.0,0.00010327,2]
[333585803,1722259836183,-150.0,0.00010327,2]
[333585804,1722259836193,-865.4228852,0.00010332,2]
[333585805,1722259836202,-383.95784046,0.00010332,2]
[333585806,1722259836211,-150.0,0.00010342,2]
[333585807,1722259836220,-865.4228852,0.00010343,2]
[333585808,1722259836228,-383.95784046,0.00010343,2]
[333585809,1722259836237,-150.0,0.00010343,2]
[333585810,1722259836246,-865.4228852,0.00010354,2]
[333585811,1722259836255,-383.95784046,0.00010354,2]
[333585812,1722259836265,-150.0,0.00010359,2]
[333585813,1722259836274,-150.0,0.00010361,2]
[333585814,1722259836285,-865.4228852,0.00010365,2]
[333585815,1722259836294,-383.95784046,0.00010365,2]
[333585816,1722259836303,-150.0,0.00010374,2]
[333585817,1722259836312,-865.4228852,0.00010376,2]
[333585818,1722259836321,-383.95784046,0.00010376,2]
[333585819,1722259836330,-150.0,0.0001038,2]
[333585820,1722259836339,-865.4228852,0.00010387,2]
[333585821,1722259836348,-383.95784046,0.00010387,2]
[333585822,1722259836357,-150.0,0.00010387,2]
[333585823,1722259836366,-150.0,0.0001039,2]
[333585824,1722259836376,-865.4228852,0.00010398,2]
[333585825,1722259836385,-383.95784046,0.00010398,2]
[333585826,1722259836394,-150.0,0.00010399,2]
[333585827,1722259836410,-400.0,0.000104,3]
[333585828,1722259836419,-150.0,0.00010406,2]
[333585829,1722259836428,-865.4228852,0.00010409,2]
[333585830,1722259836438,-383.95784046,0.00010409,2]
[333585831,1722259836448,-865.4228852,0.0001042,2]
[333585832,1722259836457,-383.95784046,0.0001042,2]
[333585833,1722259836468,-150.0,0.00010421,2]
[333585834,1722259836478,-865.4228852,0.00010431,2]
[333585835,1722259836488,-383.95784046,0.00010431,2]
[333585836,1722259836498,-150.0,0.00010437,2]
[333585837,1722259836508,-150.0,0.00010437,2]
[333585838,1722259836517,-150.0,0.00010437,2]
[333585839,1722259836526,-10000.0,0.00010439,2]
[333585840,1722259836535,-865.4228852,0.00010443,2]
[333585841,1722259836545,-383.95784046,0.00010443,2]
[333585842,1722259836555,-506.04,0.00010446,2]
[333585843,1722259836564,-150.0,0.00010453,2]
[333585844,1722259836574,-865.4228852,0.00010454,2]
[333585845,1722259836583,-383.95784046,0.00010454,2]
[333585846,1722259836592,-865.4228852,0.00010465,2]
[333585847,1722259836601,-383.95784046,0.00010465,2]
[333585848,1722259836611,-150.0,0.00010468,2]
[333585849,1722259836621,-865.4228852,0.00010476,2]
[333585850,1722259836631,-383.95784046,0.00010476,2]
[333585851,1722259836640,-150.0,0.00010484,2]
[333585852,1722259836649,-865.4228852,0.00010487,2]
[333585853,1722259836661,-383.95784046,0.00010487,2]
[333585854,1722259836669,-150.0,0.00010487,2]
[333585855,1722259836678,-5190.37854984,0.00010497,2]
[333585856,1722259836687,-865.4228852,0.00010498,2]
[333585857,1722259836697,-383.95784046,0.00010498,2]
[333585858,1722259836707,-150.0,0.000105,2]
[333585859,1722259836716,-200.0,0.000105,2]
[333585860,1722259836725,-200.2995,0.000105,2]
[333585861,1722259836733,-400.0,0.000105,3]
[333585862,1722259836742,-500.0,0.00010504,2]
[333585863,1722259836751,-865.4228852,0.00010509,2]
[333585864,1722259836760,-383.95784046,0.00010509,2]
[333585865,1722259836769,-500.0,0.00010513,2]
[333585866,1722259836778,-150.0,0.00010515,2]
[333585867,1722259836787,-865.4228852,0.0001052,2]
[333585868,1722259836796,-383.95784046,0.0001052,2]
[333585869,1722259836805,-500.0,0.00010522,2]
[333585870,1722259836814,-500.0,0.0001053,2]
[333585871,1722259836823,-150.0,0.00010531,2]
[333585872,1722259836832,-865.4228852,0.00010531,2]
[333585873,1722259836841,-383.95784046,0.00010531,2]
[333585874,1722259836850,-500.0,0.00010539,2]
[333585875,1722259836859,-865.4228852,0.00010542,2]
[333585876,1722259836868,-383.95784046,0.00010542,2]
[333585877,1722259836877,-150.0,0.00010547,2]
[333585878,1722259836886,-150.0,0.00010547,2]
[333585879,1722259836895,-150.0,0.00010547,2]
[333585880,1722259836908,-500.0,0.00010548,2]
[333585881,1722259836917,-865.4228852,0.00010554,2]
[333585882,1722259836926,-383.95784046,0.00010554,2]
[333585883,1722259836936,-500.0,0.00010557,2]
[333585884,1722259836945,-150.0,0.00010563,2]
[333585885,1722259836955,-865.4228852,0.00010565,2]
[333585886,1722259836964,-383.95784046,0.00010565,2]
[333585887,1722259836973,-500.0,0.00010566,2]
[333585888,1722259836982,-500.0,0.00010574,2]
[333585889,1722259836991,-865.4228852,0.00010576,2]
[333585890,1722259837001,-383.95784046,0.00010576,2]
[333585891,1722259837010,-150.0,0.00010578,2]
[333585892,1722259837019,-500.0,0.00010583,2]
[333585893,1722259837028,-865.4228852,0.00010587,2]
[333585894,1722259837037,-383.95784046,0.00010587,2]
[333585895,1722259837047,-150.0,0.00010587,2]
[333585896,1722259837056,-500.0,0.00010592,2]
[333585897,1722259837065,-150.0,0.00010594,2]
[333585898,1722259837074,-865.4228852,0.00010598,2]
[333585899,1722259837083,-383.95784046,0.00010598,2]
[333585900,1722259837092,-400.0,0.000106,3]
[333585901,1722259837102,-500.0,0.00010601,2]
[333585902,1722259837111,-865.4228852,0.00010609,2]
[333585903,1722259837120,-383.95784046,0.00010609,2]
[333585904,1722259837129,-500.0,0.0001061,2]
[333585905,1722259837138,-150.0,0.0001061,2]
[333585906,1722259837147,-500.0,0.00010618,2]
[333585907,1722259837163,-865.4228852,0.0001062,2]
[333585908,1722259837172,-383.95784046,0.0001062,2]
[333585909,1722259837182,-150.0,0.0001062,2]
[333585910,1722259837192,-150.0,0.00010625,2]
[333585911,1722259837202,-500.0,0.00010627,2]
[333585912,1722259837210,-865.4228852,0.00010631,2]
[333585913,1722259837219,-383.95784046,0.00010631,2]
[333585914,1722259837228,-500.0,0.00010636,2]
[333585915,1722259837237,-150.0,0.00010641,2]
[333585916,1722259837246,-865.4228852,0.00010642,2]
[333585917,1722259837255,-383.95784046,0.00010642,2]
[333585918,1722259837264,-865.4228852,0.00010653,2]
[333585919,1722259837273,-383.95784046,0.00010653,2]
[333585920,1722259837282,-150.0,0.00010657,2]
[333585921,1722259837292,-865.4228852,0.00010664,2]
[333585922,1722259837302,-383.95784046,0.00010664,2]
[333585923,1722259837311,-150.0,0.00010672,2]
[333585924,1722259837320,-865.4228852,0.00010676,2]
[333585925,1722259837328,-383.95784046,0.00010676,2]